[Event "Grand Prix Romania 1st Stage 2024"]
[Site "Bucuresti"]
[Date "2024.03.24"]
[Round "7.5"]
[White "Shuvalova, Polina"]
[Black "Deac, Bogdan-Daniel"]
[Result "0-1"]
[ECO "B12"]
[WhiteElo "2455"]
[BlackElo "2690"]
[Annotator "TA"]
[PlyCount "96"]
[EventDate "2024.03.20"]
[EventType "swiss"]
[EventCountry "ROU"]
[SourceTitle "playchess.com"]
[Source "ChessBase"]
[SourceQuality "1"]
[TimeControl "900+5"]

{[%evp 21,96,0,0,0,0,0,0,0,29,18,10,-8,-2,-100,-92,-133,-123,-127,-140,-134,-141,-135,-132,-158,-148,-212,-220,-224,-225,-346,-216,-260,-249,-318,-162,-168,-137,-137,-144,-156,-108,-122,-115,-177,-163,-193,-195,-194,-163,-240,-184,-233,-248,-312,-298,-297,-303,-317,-298,-387,-337,-364,-384,-386,-376,-423,-430,-463,-457,-858,-865,-809,-832,-796,-755,-29982,-29982]} 1. e4 {[%emt 0:00:02]} c6 {[%emt 0:00:01]} 2. d4 {[%emt 0:00:05]} d5 {[%emt 0:00:02]} 3. e5 {[%emt 0:00:01]} Bf5 {[%emt 0:00:02]} 4. Nf3 {[%emt 0:00:04]} e6 {[%emt 0:00:02]} 5. Be2 {[%emt 0:00:02]} Nd7 {[%emt 0:00:03]} 6. O-O {[%emt 0:00:06]} a5 {[%emt 0:00:01] B12: Caro-Kann: Advance Variation.} 7. a4 {[%emt 0:00:05]} f6 {[%emt 0:00:02]} 8. exf6 {[%emt 0:00:28]} Qxf6 {[%emt 0:00:53]} 9. Bg5 {[%emt 0:01:48]} Qf7 {[%emt 0:00:53]} 10. Nbd2 $146 {[%emt 0:02:15]} ({Predecessor:} 10. Bd3 Bg4 11. Nbd2 Bd6 12. Re1 Ngf6 13. h3 Bxf3 14. Nxf3 O-O 15. Bh4 h6 16. Bg3 Bxg3 17. fxg3 {0-1 Tiglon,B (2489)-Eren,A (2330) Ayvalik Walnut 2023 (5.4)}) 10... Bd6 {[%emt 0:01:13]} 11. c3 {[%emt 0:00:10]} Ne7 {[%emt 0:00:31]} 12. Qb3 {[%emt 0:00:52]} Rb8 {[%emt 0:01:47]} 13. Nh4 {[%emt 0:03:54]} O-O {[%emt 0:01:24]} 14. Nxf5 {[%emt 0:00:27]} Qxf5 {[%emt 0:03:17]} 15. Bxe7 {[%emt 0:00:38]} Bxe7 {[%emt 0:00:02]} 16. f4 {[%emt 0:00:13]} Bd6 {[%emt 0:00:35]} 17. g3 {[%emt 0:00:09]} (17. Kh1 $11) 17... g5 $17 {[%emt 0:00:15]} 18. Qd1 {[%emt 0:03:08]} gxf4 {[%emt 0:00:24]} 19. Bg4 {[%emt 0:00:02]} Qg6 {[%emt 0:00:07]} 20. Qe2 {[%emt 0:00:03] [#]} Rf6 $1 {[%emt 0:00:05]} (20... fxg3 $2 21. Qxe6+ (21. Bxe6+ Kh8 $11) 21... Kh8 22. Qxg6 (22. Qxd7 $2 gxh2+ 23. Kh1 Rxf1+ 24. Rxf1 Rg8 $19) 22... gxh2+ 23. Kg2 (23. Kh1 hxg6 24. Bxd7 Kg7 $18) 23... hxg6 24. Bxd7 $18) 21. Kh1 {[%emt 0:00:16]} Kh8 {[%emt 0:00:58]} ({Much worse is} 21... fxg3 $6 22. Rxf6 g2+ 23. Kg1 Qxf6 (23... Nxf6 $2 24. Qxe6+ Kh8 25. Qxd6 $18) 24. Bxe6+ (24. Qxe6+ Kh8 $11) 24... Kh8 25. Bxd7 $11) 22. gxf4 {[%emt 0:00:11]} Bxf4 {[%emt 0:00:48]} 23. Nb3 {[%emt 0:00:47]} (23. Rg1 $17) 23... b6 {[%emt 0:03:01]} 24. Rg1 {[%emt 0:00:03]} Qh6 {[%emt 0:00:09]} 25. Rg2 {[%emt 0:00:02]} (25. Raf1 $142) 25... Rbf8 {[%emt 0:00:16]} 26. Rf1 {[%emt 0:00:36]} Rg6 {[%emt 0:00:12]} 27. Rf3 {[%emt 0:00:14]} Rff6 {[%emt 0:00:04]} (27... Nf6 $142 28. Rh3 Qg7) 28. Rh3 $19 {[%emt 0:00:25]} Qg7 {[%emt 0:00:02]} 29. Bh5 {[%emt 0:00:12]} Rxg2 {[%emt 0:00:07]} 30. Qxg2 {[%emt 0:00:01]} Qxg2+ {[%emt 0:00:09]} 31. Kxg2 {[%emt 0:00:01]} Kg7 {[%emt 0:00:02]} 32. Bg4 {[%emt 0:00:04]} (32. Be8 $17 Nb8 33. Bh5) 32... Nf8 {[%emt 0:00:06]} 33. Rf3 {[%emt 0:00:08]} Ng6 {[%emt 0:00:01]} 34. Rf2 {[%emt 0:00:02]} Kf7 {[%emt 0:00:08]} 35. Na1 {[%emt 0:00:19]} (35. Be2 {keeps fighting.}) 35... e5 {[%emt 0:00:08]} 36. dxe5 {[%emt 0:00:03]} (36. Nc2 $142) 36... Nxe5 $19 {[%emt 0:00:01]} 37. Bh5+ {[%emt 0:00:02]} Ke7 {[%emt 0:00:04]} 38. Be2 {[%emt 0:00:03]} Bc1 {[%emt 0:00:09]} 39. Rxf6 {[%emt 0:00:10]} Kxf6 {[%emt 0:00:01]} 40. b4 {[%emt 0:00:01]} Bb2 {[%emt 0:00:04]} 41. bxa5 {[%emt 0:00:03]} bxa5 {[%emt 0:00:02]} (41... Bxa1 $2 {perishes.} 42. a6 $18) 42. Nb3 {[%emt 0:00:07]} Bxc3 {[%emt 0:00:01]} 43. Ba6 {[%emt 0:00:02]} Ke7 {[%emt 0:00:07]} 44. Kg3 {[%emt 0:00:04]} Kd6 {[%emt 0:00:01]} 45. Kf4 {[%emt 0:00:01]} (45. Nc1 $142) 45... c5 $19 {[%emt 0:00:04]} 46. Kf5 {[%emt 0:00:13]} c4 {[%emt 0:00:09]} 47. Nc1 {[%emt 0:00:01]} Nc6 {[%emt 0:00:04]} 48. Kg5 {[%emt 0:00:07]} Bd2+ {[%emt 0:00:02]} 0-1

[Event "Grand Prix Romania 1st Stage 2024"]
[Site "Bucuresti"]
[Date "2024.03.24"]
[Round "7.6"]
[White "Safarli, Eltaj"]
[Black "Tilicheev, Viacheslav"]
[Result "1/2-1/2"]
[ECO "B50"]
[WhiteElo "2614"]
[BlackElo "2485"]
[Annotator "TA"]
[PlyCount "60"]
[EventDate "2024.03.20"]
[EventType "swiss"]
[EventCountry "ROU"]
[SourceTitle "playchess.com"]
[Source "ChessBase"]
[SourceQuality "1"]
[TimeControl "900+5"]

{[%evp 9,60,4,0,6,33,-7,30,29,46,37,45,33,34,40,37,40,41,37,31,12,46,0,0,-14,-10,-14,-16,-7,-7,-7,-8,-8,-11,-10,-8,-10,0,0,0,-21,-21,-39,-29,-40,-14,-13,0,0,0,-31,-32,-34,0]} 1. e4 {[%emt 0:00:03]} c5 {[%emt 0:00:07]} 2. Nf3 {[%emt 0:00:03]} d6 {[%emt 0:00:15]} 3. Nc3 {[%emt 0:00:04]} Nf6 {[%emt 0:00:03]} 4. e5 {[%emt 0:00:02]} dxe5 {[%emt 0:00:09]} 5. Nxe5 {[%emt 0:00:01]} a6 {[%emt 0:00:02]} 6. g3 {[%emt 0:00:02]} Qc7 {[%emt 0:00:15]} 7. d4 {[%emt 0:00:04]} cxd4 {[%emt 0:00:02]} 8. Qxd4 {[%emt 0:00:03] Black must now prevent Bg2. White has an edge.} Nc6 {[%emt 0:00:01]} 9. Nxc6 {[%emt 0:00:10]} Qxc6 {[%emt 0:00:02] [#]} 10. Bg5 $1 {[%emt 0:00:07][%cal Oe1c1]} Bg4 {[%emt 0:00:18]} (10... Qxh1 11. O-O-O Nd7 (11... Qxh2 12. Qd8#) (11... Bg4 $2 12. Bb5+ axb5 13. Rxh1 $18) 12. Nd5 $18 (12. Bb5 Qxd1+ 13. Kxd1 axb5 $16)) 11. Bxf6 {[%emt 0:00:06]} h5 {[%emt 0:00:01] [#]} (11... Qxh1 $2 {too greedy.} 12. Qxg4 gxf6 13. Qa4+ b5 14. Nxb5 $18) 12. Nd5 $1 {[%emt 0:00:11]} exf6 {[%emt 0:05:26]} 13. Bg2 {[%emt 0:00:17] Threatens to win with Qe3+.} Bc5 {[%emt 0:02:23]} 14. Qe4+ {[%emt 0:00:04]} Be6 {[%emt 0:01:12]} 15. O-O-O {[%emt 0:03:13]} (15. Qe2 $14 {deserves consideration.} Kf8 (15... O-O-O $2 16. Ne7+ Bxe7 17. Bxc6 $18) 16. Nf4) 15... O-O-O $1 $11 {[%emt 0:01:14]} 16. c4 {[%emt 0:04:59]} Bxd5 {[%emt 0:00:11]} (16... Kb8 {is more complex.} 17. b4 Bd6 18. c5 a5) 17. Rxd5 {[%emt 0:00:19]} (17. cxd5 {is interesting.} Qb6 18. d6 Rxd6 19. Rxd6 Bxd6 20. Rd1) 17... Rxd5 {[%emt 0:00:14]} 18. Qxd5 {[%emt 0:00:05]} (18. cxd5 {feels hotter.} Qb6 19. d6 Bxd6 20. Rd1) 18... Qxd5 {[%emt 0:00:04]} 19. Bxd5 {[%emt 0:00:02]} Bxf2 {[%emt 0:00:08]} 20. Bxf7 {[%emt 0:00:39][%mdl 4096] Endgame. KRB-KRB} h4 {[%emt 0:00:03]} 21. g4 {[%emt 0:00:11]} Rd8 {[%emt 0:00:25]} 22. Bd5 {[%emt 0:00:26]} b5 {[%emt 0:00:52]} 23. Rd1 {[%emt 0:02:00][%cal Od5b7]} Kc7 {[%emt 0:00:57]} 24. b3 {[%emt 0:00:46]} bxc4 {[%emt 0:00:06]} 25. bxc4 {[%emt 0:00:01]} Bc5 {[%emt 0:00:20]} 26. Re1 {[%emt 0:00:39]} Rb8 {[%emt 0:00:13]} 27. Kc2 {[%emt 0:00:27]} Ba3 {[%emt 0:00:18]} 28. Kd3 {[%emt 0:00:46]} Rb2 {[%emt 0:00:09]} 29. Re2 {[%emt 0:00:02]} Rxe2 {[%emt 0:00:03]} 30. Kxe2 {[%emt 0:00:01]} g5 {[%emt 0:00:03] Weighted Error Value: White=0.07 (flawless) /Black=0.08 (flawless) .  Mistake:       	White=1     	---        Inaccurate:     	White=1     	Black=5      OK:         	White=9     	Black=10     Best:        	White=2     	---        Strong:       	---       	Black=1} 1/2-1/2

[Event "Grand Prix Romania 1st Stage 2024"]
[Site "Bucuresti"]
[Date "2024.03.24"]
[Round "7.7"]
[White "Nevednichy, Vladislav"]
[Black "Korobov, Anton"]
[Result "0-1"]
[ECO "B51"]
[WhiteElo "2445"]
[BlackElo "2662"]
[Annotator "TA"]
[PlyCount "70"]
[EventDate "2024.03.20"]
[EventType "swiss"]
[EventCountry "ROU"]
[SourceTitle "playchess.com"]
[Source "ChessBase"]
[SourceQuality "1"]
[TimeControl "900+5"]

{[%evp 9,70,0,18,19,33,6,11,13,25,8,14,18,22,18,31,38,76,33,21,32,47,19,22,0,0,0,0,0,14,16,20,0,0,0,0,-24,-19,-56,-10,-15,-16,-16,-8,-36,-40,-110,-118,-236,-243,-240,-159,-156,-168,-172,-177,-238,-246,-249,-256,-231,-222,-5600,-4944]} 1. e4 {[%emt 0:00:03]} c5 {[%emt 0:00:02]} 2. Nf3 {[%emt 0:00:01]} d6 {[%emt 0:00:01]} 3. Bb5+ {[%emt 0:00:05]} Nd7 {[%emt 0:00:03]} 4. a4 {[%emt 0:00:16]} Ngf6 {[%emt 0:00:08]} 5. Nc3 {[%emt 0:00:01]} g6 {[%emt 0:00:13]} 6. O-O {[%emt 0:00:03]} Bg7 {[%emt 0:00:02]} 7. d4 {[%emt 0:00:04]} cxd4 {[%emt 0:00:10]} 8. Nxd4 {[%emt 0:00:02] Die Stellung ist ausgeglichen.} O-O {[%emt 0:00:03]} 9. a5 {[%emt 0:00:57]} Nc5 {[%emt 0:01:05]} 10. Re1 {[%emt 0:00:04]} Bd7 {[%emt 0:00:09]} 11. Bf1 {[%emt 0:00:19]} Rc8 {[%emt 0:00:20]} 12. f3 {[%emt 0:00:18]} e5 {[%emt 0:01:54]} 13. Nb3 {[%emt 0:00:40]} Nxb3 {[%emt 0:00:14]} 14. cxb3 {[%emt 0:00:02][%cal Oc1e3]} Be6 {[%emt 0:00:01]} 15. Be3 {[%emt 0:00:27]} a6 {[%emt 0:00:33]} 16. b4 {[%emt 0:00:30]} d5 {[%emt 0:00:18]} 17. exd5 {[%emt 0:00:06]} Nxd5 {[%emt 0:00:02]} 18. Nxd5 {[%emt 0:00:05]} Bxd5 {[%emt 0:00:39]} 19. b5 {[%emt 0:03:23]} axb5 {[%emt 0:00:23]} 20. Bxb5 {[%emt 0:00:02]} e4 {[%emt 0:00:13]} 21. fxe4 {[%emt 0:00:16]} Bxe4 {[%emt 0:00:07]} 22. Qxd8 {[%emt 0:00:28]} Rfxd8 {[%emt 0:00:02]} 23. Ra4 {[%emt 0:02:09]} f5 {[%emt 0:00:49]} (23... Bd5 $15) 24. Bc4+ $11 {[%emt 0:00:39]} Kf8 {[%emt 0:04:23]} 25. b3 {[%emt 0:00:11]} Bd4 {[%emt 0:00:34]} 26. Kf2 {[%emt 0:01:09]} (26. Bxd4 {vereinfacht} Rxd4 27. a6 bxa6 28. Bxa6 Rcd8 29. Rxd4 Rxd4 30. Bc4) 26... Bxe3+ {[%emt 0:00:15]} 27. Kxe3 {[%emt 0:00:08]} (27. Rxe3 $15 Rd2+ 28. Re2 Rxe2+ 29. Kxe2 (29. Bxe2 Rc2 $15)) 27... Bxg2 $17 {[%emt 0:00:10] Schwarz steht aktiver.} 28. Kf4 {[%emt 0:00:15]} (28. Re2 $17 Bh1 29. Ra1) 28... Rd4+ $19 {[%emt 0:00:38]} 29. Kg5 {[%emt 0:00:31]} Rc7 {[%emt 0:00:28] [#] ( -> ...Kg7)} 30. Bb5 {[%emt 0:01:09]} Rxa4 {[%emt 0:00:06]} 31. bxa4 {[%emt 0:00:30]} Kg7 {[%emt 0:00:05]} 32. a6 {[%emt 0:00:09]} (32. Re8 {ist eine bessere Verteidigung.}) 32... bxa6 {[%emt 0:00:11]} 33. Bxa6 {[%emt 0:00:01]} h6+ {[%emt 0:00:02]} 34. Kf4 {[%emt 0:00:00]} Kf6 {[%emt 0:00:05] [#] Droht stark ...Rc3.} 35. h4 $2 {[%emt 0:00:16]} (35. Kg3 Bd5 36. Kf2) 35... Rc3 {[%emt 0:00:11] Gewichteter Fehlerwert: Weiß=0.42/Schwarz=0.09 (makellos) .  Fehler:       	Weiß=4     	Schwarz=1     Ungenau:       	Weiß=4     	Schwarz=2     OK:         	Weiß=8     	Schwarz=15    Bester:       	Weiß=1     	Schwarz=3} 0-1

[Event "Grand Prix Romania 1st Stage 2024"]
[Site "Bucuresti"]
[Date "2024.03.24"]
[Round "7.8"]
[White "Manolache, Marius"]
[Black "Kuzubov, Yuriy"]
[Result "1/2-1/2"]
[ECO "D37"]
[WhiteElo "2387"]
[BlackElo "2605"]
[Annotator "RC"]
[PlyCount "119"]
[EventDate "2024.03.20"]
[EventType "swiss"]
[EventCountry "ROU"]
[SourceTitle "playchess.com"]
[Source "ChessBase"]
[SourceQuality "1"]
[TimeControl "900+5"]

1. d4 {[%emt 0:00:04]} Nf6 {[%emt 0:00:02]} 2. c4 {[%emt 0:00:01]} e6 {[%emt 0:00:02]} 3. Nc3 {[%emt 0:00:02]} d5 {[%emt 0:00:02]} 4. Nf3 {[%emt 0:00:09]} a6 {[%emt 0:00:02]} 5. cxd5 {[%emt 0:00:04]} exd5 {[%emt 0:00:01]} 6. a3 {[%emt 0:00:01]} Bd6 {[%emt 0:00:19]} 7. Bg5 {[%emt 0:00:10]} c6 {[%emt 0:00:45]} 8. Qc2 {[%emt 0:00:13]} Nbd7 {[%emt 0:01:55]} 9. e3 {[%emt 0:00:22]} Nf8 {[%emt 0:00:28]} 10. Bh4 {[%emt 0:00:34]} Ng6 {[%emt 0:00:29]} 11. Bg3 {[%emt 0:00:04]} Bxg3 {[%emt 0:00:16]} 12. hxg3 {[%emt 0:00:02]} Ng4 {[%emt 0:04:47]} 13. Bd3 {[%emt 0:00:50]} Nf8 {[%emt 0:00:09]} 14. O-O-O {[%emt 0:01:23]} Be6 {[%emt 0:00:09]} 15. e4 {[%emt 0:00:34]} dxe4 {[%emt 0:01:34]} 16. Bxe4 {[%emt 0:00:14]} Nf6 {[%emt 0:00:39]} 17. Rhe1 {[%emt 0:00:26]} Nxe4 {[%emt 0:00:57]} 18. Qxe4 {[%emt 0:03:14]} Ng6 {[%emt 0:01:01]} 19. d5 {[%emt 0:00:41]} cxd5 {[%emt 0:00:02]} 20. Rxd5 {[%emt 0:01:08]} Qb6 {[%emt 0:00:05]} 21. Qd4 {[%emt 0:00:57]} Qxd4 {[%emt 0:01:42]} 22. Nxd4 {[%emt 0:00:20]} O-O {[%emt 0:00:20]} 23. Nxe6 {[%emt 0:00:10]} fxe6 {[%emt 0:00:01]} 24. Rd2 {[%emt 0:00:18]} e5 {[%emt 0:00:07]} 25. f3 {[%emt 0:00:02]} Rac8 {[%emt 0:00:16]} 26. Kb1 {[%emt 0:00:08]} Rc7 {[%emt 0:00:39]} 27. Rd6 {[%emt 0:00:43]} Rfc8 {[%emt 0:00:16]} 28. Red1 {[%emt 0:01:14]} Nf8 {[%emt 0:00:02]} 29. Nd5 {[%emt 0:00:17]} Rf7 {[%emt 0:00:02]} 30. Re1 {[%emt 0:00:10]} Re8 {[%emt 0:00:06]} 31. f4 {[%emt 0:01:32]} Rd7 {[%emt 0:00:08]} 32. Rxd7 {[%emt 0:00:16]} Nxd7 {[%emt 0:00:01]} 33. Nc7 {[%emt 0:00:52]} Re7 {[%emt 0:00:07]} 34. Nd5 {[%emt 0:00:04]} Re6 {[%emt 0:00:03]} 35. Nc7 {[%emt 0:00:08]} Rc6 {[%emt 0:00:02]} 36. Nd5 {[%emt 0:00:01]} Rc5 {[%emt 0:00:04]} 37. Nc3 {[%emt 0:00:08]} Kf7 {[%emt 0:00:08]} 38. Kc2 {[%emt 0:00:16]} exf4 {[%emt 0:00:03]} 39. gxf4 {[%emt 0:00:01]} Nf6 {[%emt 0:00:03]} 40. Kd3 {[%emt 0:00:08]} h5 {[%emt 0:00:07]} 41. g3 {[%emt 0:00:05]} Rc8 {[%emt 0:00:07]} 42. Re5 {[%emt 0:00:05]} g6 {[%emt 0:00:04]} 43. Ne4 {[%emt 0:00:18]} Rd8+ {[%emt 0:00:06]} 44. Ke2 {[%emt 0:00:06]} Nxe4 {[%emt 0:00:06]} 45. Rxe4 {[%emt 0:00:01]} Rd5 {[%emt 0:00:14]} 46. Rb4 {[%emt 0:00:03]} b5 {[%emt 0:00:02]} 47. Re4 {[%emt 0:00:02]} Rd6 {[%emt 0:00:04]} 48. a4 {[%emt 0:00:07]} Re6 {[%emt 0:00:04]} 49. Rxe6 {[%emt 0:00:05]} Kxe6 {[%emt 0:00:01]} 50. axb5 {[%emt 0:00:02]} axb5 {[%emt 0:00:01]} 51. b4 {[%emt 0:00:10]} Kf5 {[%emt 0:00:07]} 52. Kf3 {[%emt 0:00:01]} g5 {[%emt 0:00:04]} 53. fxg5 {[%emt 0:00:02]} Kxg5 {[%emt 0:00:01]} 54. Kf2 {[%emt 0:00:10]} Kf5 {[%emt 0:00:03]} 55. Kf3 {[%emt 0:00:02]} Kg5 {[%emt 0:00:05]} 56. Ke3 {[%emt 0:00:07]} Kg4 {[%emt 0:00:06]} 57. Kf2 {[%emt 0:00:01]} Kf5 {[%emt 0:00:06]} 58. Kf3 {[%emt 0:00:01]} Kg5 {[%emt 0:00:07]} 59. Ke3 {[%emt 0:00:01]} Kg4 {[%emt 0:00:19]} 60. Kf2 {[%emt 0:00:01]} 1/2-1/2

[Event "Grand Prix Romania 1st Stage 2024"]
[Site "Bucuresti"]
[Date "2024.03.24"]
[Round "7.9"]
[White "Brunello, Sabino"]
[Black "Efroimski, Marsel"]
[Result "1/2-1/2"]
[ECO "A13"]
[WhiteElo "2515"]
[BlackElo "2467"]
[Annotator "RC"]
[PlyCount "126"]
[EventDate "2024.03.20"]
[EventType "swiss"]
[EventCountry "ROU"]
[SourceTitle "playchess.com"]
[Source "ChessBase"]
[SourceQuality "1"]
[TimeControl "900+5"]

1. c4 {[%emt 0:00:02]} e6 {[%emt 0:00:01]} 2. g3 {[%emt 0:00:02]} d5 {[%emt 0:00:01]} 3. Nf3 {[%emt 0:00:02]} Nf6 {[%emt 0:00:01]} 4. Bg2 {[%emt 0:00:01]} dxc4 {[%emt 0:00:01]} 5. Qa4+ {[%emt 0:00:01]} Bd7 {[%emt 0:00:01]} 6. Qxc4 {[%emt 0:00:00]} c5 {[%emt 0:00:02]} 7. Ne5 {[%emt 0:00:02]} Qc8 {[%emt 0:00:01]} 8. Nc3 {[%emt 0:00:33]} Nc6 {[%emt 0:00:04]} 9. Nxd7 {[%emt 0:00:02]} Qxd7 {[%emt 0:00:02]} 10. O-O {[%emt 0:00:10]} Be7 {[%emt 0:00:10]} 11. Rd1 {[%emt 0:00:12]} Rc8 {[%emt 0:00:13]} 12. b3 {[%emt 0:00:12]} O-O {[%emt 0:00:03]} 13. Bb2 {[%emt 0:00:01]} Rfd8 {[%emt 0:00:12]} 14. Rac1 {[%emt 0:00:07]} b6 {[%emt 0:00:16]} 15. h3 {[%emt 0:00:21]} Nd5 {[%emt 0:00:57]} 16. Ne4 {[%emt 0:01:48]} f5 {[%emt 0:00:11]} 17. Nc3 {[%emt 0:00:02]} Bf6 {[%emt 0:00:02]} 18. Qa4 {[%emt 0:00:23]} Nxc3 {[%emt 0:00:52]} 19. Bxc3 {[%emt 0:00:20]} Bxc3 {[%emt 0:00:03]} 20. Rxc3 {[%emt 0:00:06]} Nd4 {[%emt 0:03:44]} 21. Qxd7 {[%emt 0:00:04]} Rxd7 {[%emt 0:00:01]} 22. Kf1 {[%emt 0:00:01]} Rcd8 {[%emt 0:00:43]} 23. Rc4 {[%emt 0:01:17]} e5 {[%emt 0:00:24]} 24. e3 {[%emt 0:00:30]} Ne6 {[%emt 0:00:01]} 25. Ke2 {[%emt 0:00:04]} a5 {[%emt 0:01:14]} 26. Rc2 {[%emt 0:00:57]} Rd6 {[%emt 0:00:20]} 27. h4 {[%emt 0:00:02]} h5 {[%emt 0:00:18]} 28. a3 {[%emt 0:00:26]} g6 {[%emt 0:00:30]} 29. Rb1 {[%emt 0:00:26]} Kg7 {[%emt 0:00:51]} 30. Ke1 {[%emt 0:00:48]} f4 {[%emt 0:01:25]} 31. Ke2 {[%emt 0:00:36]} Rf8 {[%emt 0:00:40]} 32. gxf4 {[%emt 0:00:43]} exf4 {[%emt 0:00:03]} 33. b4 {[%emt 0:00:00]} cxb4 {[%emt 0:00:36]} 34. axb4 {[%emt 0:07:34]} f3+ {[%emt 0:00:50]} 35. Bxf3 {[%emt 0:00:00]} Nd4+ {[%emt 0:00:02]} 36. exd4 {[%emt 0:00:00]} Re6+ {[%emt 0:00:01]} 37. Kf1 {[%emt 0:00:00]} Rxf3 {[%emt 0:00:03]} 38. bxa5 {[%emt 0:00:20]} bxa5 {[%emt 0:00:09]} 39. Rb7+ {[%emt 0:00:00]} Rf7 {[%emt 0:00:04]} 40. Rcc7 {[%emt 0:00:00]} Rxc7 {[%emt 0:00:03]} 41. Rxc7+ {[%emt 0:00:00]} Kf6 {[%emt 0:00:04]} 42. Ra7 {[%emt 0:00:00]} Rd6 {[%emt 0:00:12]} 43. Rxa5 {[%emt 0:00:00]} Rxd4 {[%emt 0:00:01]} 44. Ke2 {[%emt 0:00:00]} Rxh4 {[%emt 0:00:03]} 45. Ke3 {[%emt 0:00:00]} Rb4 {[%emt 0:00:08]} 46. d4 {[%emt 0:00:00]} Rb1 {[%emt 0:00:13]} 47. Kf4 {[%emt 0:00:00]} Rf1 {[%emt 0:00:36]} 48. Ra6+ {[%emt 0:00:00]} Kf7 {[%emt 0:00:03]} 49. Kf3 {[%emt 0:00:00]} Rd1 {[%emt 0:00:11]} 50. Ke3 {[%emt 0:00:00]} g5 {[%emt 0:00:17]} 51. Ke4 {[%emt 0:00:00]} h4 {[%emt 0:00:36]} 52. Kf5 {[%emt 0:00:00]} Rxd4 {[%emt 0:00:30]} 53. Ra7+ {[%emt 0:00:00]} Kg8 {[%emt 0:00:04]} 54. Kxg5 {[%emt 0:00:00]} Rd2 {[%emt 0:00:10]} 55. f3 {[%emt 0:00:00]} h3 {[%emt 0:00:04]} 56. Ra1 {[%emt 0:00:00]} h2 {[%emt 0:00:27]} 57. Kf4 {[%emt 0:00:00]} Rg2 {[%emt 0:00:04]} 58. Rh1 {[%emt 0:00:00]} Kg7 {[%emt 0:00:03]} 59. Ke3 {[%emt 0:00:00]} Kg6 {[%emt 0:00:01]} 60. f4 {[%emt 0:00:00]} Kf5 {[%emt 0:00:04]} 61. Kf3 {[%emt 0:00:00]} Ra2 {[%emt 0:00:02]} 62. Kg3 {[%emt 0:00:00]} Ra3+ {[%emt 0:00:06]} 63. Kxh2 {[%emt 0:00:00]} Kxf4 {[%emt 0:01:06]} 1/2-1/2

[Event "Grand Prix Romania 1st Stage 2024"]
[Site "Bucuresti"]
[Date "2024.03.24"]
[Round "7.10"]
[White "Secheres, Adrian-Simion"]
[Black "Bologan, Victor"]
[Result "1-0"]
[ECO "B07"]
[WhiteElo "2371"]
[BlackElo "2594"]
[Annotator "TA"]
[PlyCount "67"]
[EventDate "2024.03.20"]
[EventType "swiss"]
[EventCountry "ROU"]
[SourceTitle "playchess.com"]
[Source "ChessBase"]
[SourceQuality "1"]
[TimeControl "900+5"]

{[%evp 16,67,16,19,56,7,30,31,58,0,61,47,53,54,55,45,61,0,54,41,36,23,33,44,49,62,66,0,312,279,599,594,553,552,761,794,937,952,863,648,989,469,423,444,437,430,615,543,568,566,682,681,720,716]} 1. d4 {[%emt 0:00:03]} d6 {[%emt 0:00:00]} 2. Nf3 {[%emt 0:00:11]} Nf6 {[%emt 0:00:03]} 3. g3 {[%emt 0:00:10]} g6 {[%emt 0:00:07]} 4. Bg2 {[%emt 0:00:07]} Bg7 {[%emt 0:00:01]} 5. O-O {[%emt 0:00:03]} O-O {[%emt 0:00:02]} 6. Re1 {[%emt 0:00:15]} Nbd7 {[%emt 0:00:06]} 7. e4 {[%emt 0:00:13]} e5 {[%emt 0:00:02]} 8. Nc3 {[%emt 0:00:13]} c6 {[%emt 0:00:07]} 9. a4 {[%emt 0:00:05]} b6 {[%emt 0:01:12][%cal Bb7b6,Bb6b5][%mdl 32]} 10. b3 {[%emt 0:01:17]} (10. dxe5 $14 {might be stronger.} Nxe5 11. Nd4) 10... Re8 {[%emt 0:00:18]} 11. Ba3 {[%emt 0:00:52]} Qc7 {[%emt 0:01:10] White is slightly better.} 12. Qd2 {[%emt 0:03:43]} (12. dxe5 $14 dxe5 13. Bd6) 12... a6 {[%emt 0:01:16]} (12... exd4 $1 $11 13. Nxd4 Bb7) 13. Rad1 {[%emt 0:00:11] White is more active.} b5 {[%emt 0:02:25]} 14. dxe5 {[%emt 0:02:15]} dxe5 {[%emt 0:00:02]} 15. Bd6 {[%emt 0:00:02]} Qb6 {[%emt 0:00:29]} 16. b4 {[%emt 0:00:02]} (16. Qe3 $14) 16... Bb7 {[%emt 0:00:55]} ({Black should play} 16... Re6 $11) 17. a5 {[%emt 0:00:21]} Qa7 {[%emt 0:00:05]} 18. Bh3 $36 {[%emt 0:00:34][%mdl 2048] White has good play.} c5 {[%emt 0:00:23]} 19. Nd5 {[%emt 0:03:24]} Bxd5 {[%emt 0:01:43]} 20. exd5 {[%emt 0:00:02]} e4 {[%emt 0:00:43]} 21. Ng5 {[%emt 0:00:02][%cal Og5f7] Hoping for Nxf7!} h6 $2 {[%emt 0:01:47][%mdl 8192]} (21... cxb4 $1 $11 {and Black has nothing to worry.} 22. Qf4 (22. Bxb4 Bh6 $15) (22. Qxb4 e3 $15) 22... Bh6 23. Bxb4 Ne5) 22. Nxf7 $1 $18 {[%emt 0:00:14]} Kxf7 {[%emt 0:00:02]} (22... Kh7 {is more resistant.} 23. bxc5 Nxc5) 23. Be6+ {[%emt 0:00:03] White is clearly winning.} Rxe6 {[%emt 0:00:02]} 24. dxe6+ {[%emt 0:00:01]} Kxe6 {[%emt 0:00:05] [#]} 25. Rxe4+ $3 {[%emt 0:00:33][%mdl 512]} Kf7 {[%emt 0:00:10]} (25... Nxe4 26. Qd5+) 26. Re7+ {[%emt 0:00:03]} Kg8 {[%emt 0:00:01]} 27. Bxc5 {[%emt 0:00:20]} Qb7 {[%emt 0:00:36]} 28. Rxd7 {[%emt 0:00:05]} (28. Qc3 $142) 28... Nxd7 {[%emt 0:00:07]} 29. Qxd7 {[%emt 0:00:02]} Qxd7 {[%emt 0:00:02]} 30. Rxd7 {[%emt 0:00:01] KRB-KRB} Bf8 {[%emt 0:00:22]} (30... g5 $142 31. Kf1 Re8) 31. Rc7 {[%emt 0:00:04]} Bxc5 {[%emt 0:00:21]} 32. Rxc5 {[%emt 0:00:12]} Kf7 {[%emt 0:00:11]} 33. Rc6 {[%emt 0:00:06]} h5 {[%emt 0:00:10]} 34. h4 {[%emt 0:00:04] Weighted Error Value: White=0.82/Black=0.71.  Loses game:     	---       	Black=1      Mistake:       	White=3     	Black=4      Inaccurate:     	---       	Black=2      OK:         	White=6     	Black=3      Best:        	White=1     	---        Strong:       	White=1     	---        Brilliant:      	White=1     	---} 1-0